bitfinex-derivatives/quotes_SOLF0:USTF0_20250623
["timestamp","ask_amount","ask_price","bid_price","bid_amount"]
[1750661003842,7.4587,134.03,134.0,3.73909571]
[1750661004743,7.4587,134.03,134.01,7.4597]
[1750661005044,11.19749571,134.04,134.01,7.4597]
[1750661005842,7.4584,134.04,134.01,7.4597]
[1750661006745,42.18,134.05,134.01,3.73909571]
[1750661006940,5.67434607,134.04,134.02,3.73909571]
[1750661007148,42.18,134.05,134.02,3.73909571]
[1750661007342,42.18,134.05,134.03,3.73909571]
[1750661008741,42.18,134.05,134.04,7.4581]
[1750661009345,7.4567,134.07,134.04,11.19719571]
[1750661009741,5.6699005,134.06,134.04,11.19719571]
[1750661009944,7.4567,134.07,134.04,11.19719571]
[1750661010144,5.66892547,134.06,134.04,11.19719571]
[1750661010350,17.25521666,134.07,134.04,7.4581]
[1750661010549,5.66887644,134.06,134.04,7.4581]
[1750661010749,17.25521666,134.07,134.04,7.4581]
[1750661011046,5.66887492,134.06,134.04,7.4581]
[1750661011246,11.19410097,134.07,134.04,7.4581]
[1750661011449,5.67238669,134.06,134.04,7.4581]
[1750661011748,7.4571,134.06,134.04,7.4581]
[1750661013248,5.67174558,134.05,134.03,11.19580097]
[1750661013555,7.4571,134.06,134.03,11.19580097]
[1750661013745,5.67381992,134.05,134.03,11.19580097]
[1750661013945,7.4571,134.06,134.03,11.19580097]
[1750661014145,5.67389554,134.05,134.03,11.19580097]
[1750661014445,7.4576,134.05,134.02,11.19640097]
[1750661016147,41.52,134.08,134.04,3.73740097]
[1750661016352,5.67412464,134.07,134.05,3.73740097]
[1750661016654,41.52,134.08,134.05,7.4575]
[1750661016655,52.71370097,134.08,134.05,7.4575]
[1750661016848,5.67413047,134.07,134.05,7.4575]
[1750661017047,52.71370097,134.08,134.05,7.4575]
[1750661017349,5.67446345,134.07,134.05,7.4575]
[1750661017548,52.71370097,134.08,134.05,7.4575]
[1750661017750,5.67441586,134.07,134.05,7.4575]
[1750661017949,52.71370097,134.08,134.05,7.4575]
[1750661018153,5.67197513,134.07,134.05,7.4575]
[1750661018353,52.71370097,134.08,134.05,7.4575]
[1750661018555,5.67199515,134.07,134.06,11.19440097]
[1750661018756,3.73740097,134.1,134.06,3.73740097]
[1750661018757,5.67254473,134.09,134.06,3.73740097]
[1750661018956,12.58583638,134.13,134.08,3.73740097]
[1750661019150,5.67319872,134.12,134.1,3.73740097]
[1750661019351,5.67319872,134.11,134.1,3.73740097]
[1750661019554,2.78754485,134.13,134.11,7.4541]
[1750661019555,3.73740097,134.13,134.11,7.4541]
[1750661019755,5.67342086,134.12,134.11,7.4541]
[1750661020459,3.73740097,134.13,134.11,7.4541]
[1750661021357,3.73740097,134.12,134.1,7.4546]
[1750661022159,3.73740097,134.11,134.08,2.29]
[1750661022364,5.83581098,134.12,134.08,2.29]
[1750661023769,13.28981098,134.12,134.09,7.4549]
[1750661024366,5.83581098,134.1,134.01,651.17344443]
[1750661024567,5.83581098,134.08,134.03,41.16]
[1750661024760,13.29211098,134.08,134.04,9.8543]
[1750661025264,13.29211098,134.08,134.04,7.4577]
[1750661025467,41.16,134.1,134.03,7.4584]
[1750661025468,5.83581098,134.06,134.03,7.4584]
[1750661026773,13.29321098,134.06,134.02,4.728]
[1750661027376,5.83581098,134.06,134.02,4.728]
[1750661028372,5.83581098,134.06,134.04,7.4581]
[1750661030979,13.29301098,134.06,134.03,7.4584]
[1750661032477,5.83581098,134.06,134.04,7.458]
[1750661032678,5.83581098,134.06,134.02,4.728]
[1750661032881,5.83581098,134.04,134.02,4.728]
[1750661033174,5.83581098,134.06,134.02,2.408]
[1750661033377,7.4579,134.05,134.02,9.8669]
[1750661033977,13.29301098,134.06,134.03,7.4587]
[1750661034970,13.29301098,134.06,134.02,2.408]
[1750661034971,7.4577,134.05,134.02,9.8671]
[1750661035170,5.83581098,134.06,133.99,43.6233]
[1750661035171,41.18,134.06,133.99,2.4633]
[1750661035378,5.83581098,134.04,133.99,2.4633]
[1750661035676,7.4591,134.03,134.0,7.4602]
[1750661035879,5.83581098,134.02,133.97,8.24411098]
[1750661036279,5.83581098,134.02,133.99,7.4605]
[1750661036575,13.29521098,134.02,133.99,7.4605]
[1750661038874,5.83581098,134.02,134.0,7.4603]
[1750661039075,5.83581098,134.02,133.97,2.4083]
[1750661040976,7.4599,134.01,133.98,7.4612]
[1750661041778,5.83581098,134.0,133.96,2.2933]
[1750661042078,5.83581098,134.0,133.95,3.68456525]
[1750661042079,5.83581098,134.0,133.95,1.29826525]
[1750661042272,7.4612,133.99,133.96,7.4623]
[1750661042577,7.4612,133.99,133.95,1.29826525]
[1750661043376,13.29701098,133.99,133.96,7.4623]
[1750661044380,58.47381597,133.98,133.87,6.97344443]
[1750661044574,5.83581098,133.92,133.85,20.18035541]
[1750661044771,5.83581098,133.92,133.88,7.4667]
[1750661044971,5.83581098,133.92,133.85,8.67062575]
[1750661045369,41.18,133.93,133.85,8.67062575]
[1750661045569,5.83581098,133.9,133.85,8.67062575]
[1750661045973,41.18,133.93,133.85,8.67062575]
[1750661046174,5.83581098,133.9,133.85,8.67062575]
[1750661046376,10.65151098,133.98,133.85,14.50643673]
[1750661046574,43.4066,133.97,133.89,5.83581098]
[1750661046781,5.83581098,133.96,133.9,2.4907]
[1750661046981,13.29851098,133.96,133.92,7.4644]
[1750661047175,7.4627,133.96,133.91,5.83581098]
[1750661047375,13.29851098,133.96,133.91,5.83581098]
[1750661047778,40.9,133.97,133.91,5.83581098]
[1750661047981,40.9,133.97,133.93,5.83581098]
[1750661048283,40.9,133.97,133.94,7.4633]
[1750661049282,48.3621,133.97,133.93,13.29981098]
[1750661049980,48.3621,133.97,133.94,7.4636]
[1750661053380,7.4627,133.96,133.91,2.3992]
[1750661053683,7.4627,133.96,133.91,8.23501098]
[1750661054077,40.9,133.97,133.91,2.3992]
[1750661054281,40.9,133.97,133.91,8.23501098]
[1750661054983,40.9,133.97,133.93,7.4641]
[1750661055584,48.3624,133.97,133.93,7.4641]
[1750661055890,40.9,133.97,133.93,7.4641]
[1750661056689,7.4626,133.96,133.93,7.4641]
[1750661056986,40.9,133.97,133.91,8.23501098]
[1750661057286,48.3626,133.97,133.91,8.23501098]
[1750661057484,48.3626,133.97,133.93,7.4639]
[1750661058391,40.9,133.97,133.91,8.23501098]
[1750661058584,7.4616,133.98,133.91,8.23501098]
[1750661058791,48.3616,133.98,133.91,8.23501098]
[1750661058983,7.4626,133.96,133.91,2.3992]
[1750661059677,7.4626,133.96,133.93,7.4639]
[1750661062294,7.4622,133.97,133.94,7.4636]
[1750661062685,7.4622,133.97,133.93,7.464]
[1750661063191,7.4627,133.96,133.93,7.464]
[1750661064086,46.73581098,133.98,133.91,8.23501098]
[1750661064789,46.73581098,133.98,133.9,4.8054]
[1750661064992,7.463,133.96,133.92,7.4646]
[1750661065193,7.463,133.96,133.9,10.64121098]
[1750661065494,7.463,133.96,133.92,7.4644]
[1750661065886,7.463,133.96,133.9,10.64121098]
[1750661066087,50.7646,133.98,133.9,10.64121098]
[1750661066284,40.9,133.98,133.94,5.83581098]
[1750661066485,49.15611098,134.03,133.96,5.83581098]
[1750661066689,7.4602,134.01,133.96,5.83581098]
[1750661067196,49.15611098,134.03,133.96,5.83581098]
[1750661067495,7.4598,134.01,133.98,7.4611]
[1750661068989,7.4604,134.0,133.97,7.4618]
[1750661069297,7.4604,134.0,133.95,4.9466]
[1750661069692,7.4604,134.0,133.97,7.462]
[1750661070094,7.461,133.99,133.95,4.9466]
[1750661070299,11.69109193,134.01,133.96,7.4622]
[1750661070497,5.83581098,134.01,133.96,7.4622]
[1750661070692,7.4608,134.0,133.96,7.4622]
[1750661071592,19.15126283,134.01,133.95,4.9466]
[1750661071799,7.46,134.01,133.96,5.83581098]
[1750661072199,7.4604,134.0,133.97,7.4617]
[1750661072894,5.8608389,134.01,133.98,7.4612]
[1750661073094,5.83581098,134.02,133.96,5.83581098]
[1750661073591,13.29541098,134.02,133.96,5.83581098]
[1750661073790,5.83581098,134.02,133.95,4.9466]
[1750661073990,5.83581098,134.02,133.95,10.78241098]
[1750661074192,7.4604,134.0,133.95,10.78241098]
[1750661074598,7.4604,134.0,133.96,7.4623]
[1750661074796,7.461,133.99,133.96,7.4623]
[1750661075796,7.4615,133.98,133.95,5.83581098]
[1750661075994,7.4615,133.98,133.93,5.83581098]
[1750661076500,7.4615,133.98,133.95,7.463]
[1750661077096,7.4621,133.97,133.94,7.4635]
[1750661078390,7.4626,133.96,133.94,7.4635]
[1750661080107,7.4626,133.96,133.93,7.464]
[1750661080300,5.83581098,133.98,133.91,5.83581098]
[1750661080503,5.83581098,133.96,133.9,10.69331098]
[1750661081006,7.4634,133.95,133.9,10.69331098]
[1750661081306,5.83581098,133.96,133.9,2.4119]
[1750661081505,5.83581098,133.94,133.89,40.64]
[1750661081709,5.83581098,133.94,133.87,2.4859]
[1750661081901,5.88274457,133.93,133.87,2.4859]
[1750661082210,5.83581098,133.94,133.87,2.4859]
[1750661082404,5.83581098,133.92,133.86,51.19401098]
[1750661082902,5.83581098,133.92,133.86,45.3582]
[1750661083107,5.83581098,133.92,133.86,43.058]
[1750661083311,5.83581098,133.9,133.84,5.83581098]
[1750661084706,7.4667,133.89,133.85,7.4684]
[1750661086412,7.4667,133.89,133.86,7.468]
[1750661086604,13.30191098,133.9,133.84,5.83581098]
[1750661087008,13.30191098,133.9,133.86,7.4678]
[1750661088713,13.30191098,133.9,133.87,7.4676]
[1750661089617,5.83581098,133.9,133.83,41.95984126]
[1750661089812,5.83581098,133.9,133.84,5.83581098]
[1750661090607,13.30211098,133.9,133.84,5.83581098]
[1750661091115,40.66,133.91,133.89,7.4661]
[1750661091907,7.465,133.92,133.89,7.4661]
[1750661092814,5.86278643,133.93,133.88,5.83581098]
[1750661093122,40.66,133.94,133.88,5.83581098]
[1750661093326,53.9860837,133.94,133.91,7.4651]
[1750661093533,48.1241,133.94,133.91,7.4651]
[1750661094525,7.4644,133.93,133.9,7.4657]
[1750661096124,48.1239,133.94,133.91,7.4653]
[1750661096426,40.66,133.94,133.88,5.83581098]
[1750661097027,7.4643,133.93,133.9,7.4656]
[1750661097223,40.66,133.94,133.88,5.83581098]
[1750661097827,40.66,133.94,133.88,10.62901098]
[1750661098328,40.66,133.94,133.88,12.91131098]
[1750661098925,40.66,133.94,133.92,7.4648]
[1750661100030,48.1238,133.94,133.91,7.4652]
[1750661100328,40.66,133.94,133.89,5.83581098]
[1750661100723,48.124,133.94,133.89,5.83581098]
[1750661101030,40.66,133.94,133.89,5.83581098]
[1750661101429,48.1238,133.94,133.91,7.465]
[1750661103024,40.66,133.94,133.92,7.4648]
[1750661104230,48.1237,133.94,133.91,7.4651]
[1750661104530,40.66,133.94,133.89,5.83581098]
[1750661104932,40.66,133.94,133.91,7.4651]
[1750661105435,48.1237,133.94,133.91,7.4651]
[1750661106735,48.1237,133.94,133.92,7.4648]
[1750661107631,40.66,133.94,133.93,7.4643]
[1750661109138,685.04,133.97,133.93,5.83581098]
[1750661109325,5.83581098,133.95,133.89,5.83581098]
[1750661109931,7.464,133.94,133.89,5.83581098]
[1750661110336,7.4644,133.93,133.88,7.0755]
[1750661110538,7.4644,133.93,133.89,5.83581098]
[1750661111532,11.66315021,133.96,133.89,5.83581098]
[1750661111729,5.82733923,133.95,133.89,5.83581098]
[1750661112333,7.4652,133.92,133.89,5.83581098]
[1750661112936,7.4659,133.9,133.88,12.91131098]
[1750661113430,7.4659,133.9,133.88,2.3086]
[1750661114237,5.83581098,133.94,133.88,2.3086]
[1750661114434,11.66781514,133.94,133.88,2.3086]
[1750661114628,5.83581098,133.94,133.88,2.3086]
[1750661114830,11.66781514,133.94,133.88,2.3086]
[1750661115040,5.83581098,133.94,133.88,2.3086]
[1750661115239,11.66781514,133.94,133.88,2.3086]
[1750661115538,7.4664,133.9,133.88,2.3086]
[1750661115842,5.83581098,133.94,133.88,2.3086]
[1750661116041,7.4669,133.89,133.87,5.83581098]
[1750661119537,40.44,133.93,133.86,40.44]
[1750661119736,40.44,133.93,133.86,46.27581098]
[1750661119942,5.83929141,133.92,133.86,46.27581098]
[1750661120239,7.467,133.89,133.86,46.27581098]
[1750661120844,7.4671,133.88,133.86,46.27581098]
[1750661121040,5.83581098,133.92,133.85,2.3501]
[1750661121241,7.468,133.87,133.85,8.18591098]
[1750661121745,5.83599069,133.91,133.85,8.18591098]
[1750661121933,11.92269205,133.92,133.85,8.18591098]
[1750661122136,5.83256399,133.91,133.85,2.3501]
[1750661122341,11.92269205,133.92,133.85,2.3501]
[1750661122535,7.4681,133.87,133.85,2.3501]
[1750661125443,7.4672,133.88,133.85,9.8187]
[1750661126343,5.83407184,133.91,133.86,5.83581098]
[1750661126550,40.44,133.93,133.86,5.83581098]
[1750661126749,7.4657,133.91,133.87,7.4673]
[1750661127141,5.83628152,133.9,133.85,8.18591098]
[1750661127342,7.4669,133.89,133.85,2.3501]
[1750661128749,7.4669,133.89,133.84,10.58731098]
[1750661128750,7.4669,133.89,133.86,7.4681]
[1750661129450,13.55667618,133.91,133.87,7.4675]
[1750661129650,5.83090349,133.9,133.87,7.4675]
[1750661129949,13.55667618,133.91,133.87,7.4675]
[1750661130151,5.83090352,133.9,133.87,7.4675]
[1750661130350,13.55667618,133.91,133.87,7.4675]
[1750661130647,5.83068787,133.9,133.87,7.4675]
[1750661130849,13.55667618,133.91,133.87,7.4675]
[1750661131047,13.29749998,133.9,133.87,7.4675]
[1750661131342,7.466,133.9,133.87,7.4675]
[1750661132250,6.06670539,133.91,133.89,7.4662]
[1750661132445,40.44,133.93,133.88,5.83581098]
[1750661132646,5.83378431,133.92,133.88,5.83581098]
[1750661132845,40.44,133.93,133.88,5.83581098]
[1750661133150,5.83380419,133.92,133.88,5.83581098]
[1750661133343,47.9046,133.93,133.88,5.83581098]
[1750661133548,5.83397875,133.92,133.88,5.83581098]
[1750661133749,47.9046,133.93,133.88,5.83581098]
[1750661134052,5.83570621,133.92,133.89,7.4664]
[1750661134257,47.9046,133.93,133.89,7.4664]
[1750661134454,5.83527938,133.92,133.89,7.4664]
[1750661134753,47.9046,133.93,133.89,7.4664]
[1750661134952,5.8352839,133.92,133.89,7.4664]
[1750661135256,40.44,133.93,133.88,5.83581098]
[1750661135452,5.83603973,133.92,133.88,5.83581098]
[1750661135652,40.44,133.93,133.92,7.4648]
[1750661135854,46.276093,133.93,133.92,7.4648]
[1750661136555,40.44,133.93,133.92,7.4648]
[1750661137455,7.4632,133.95,133.92,7.4648]
[1750661137655,5.83580418,133.94,133.92,7.4648]
[1750661137857,7.4632,133.95,133.92,7.4648]
[1750661138051,5.83535974,133.94,133.92,7.4648]
[1750661138250,50.0179,133.96,133.92,7.4648]
[1750661138455,5.83526656,133.95,133.92,7.4648]
[1750661138659,650.43581098,133.97,133.92,5.83581098]
[1750661138660,644.6,133.97,133.92,5.83581098]
[1750661138862,13.29811746,133.96,133.91,5.83581098]
[1750661139156,5.83531746,133.95,133.92,7.4647]
[1750661139457,6.06931552,133.96,133.92,7.4647]
[1750661139661,5.83489082,133.95,133.92,7.4647]
[1750661139853,7.4629,133.96,133.92,7.4647]
[1750661140054,5.83471442,133.95,133.92,7.4647]
[1750661140250,690.63581098,133.97,133.92,7.4647]
[1750661140452,11.90438398,133.96,133.92,7.4647]
[1750661140761,5.83496493,133.95,133.92,7.4647]
[1750661140966,690.63581098,133.97,133.92,7.4647]
[1750661141159,13.29742873,133.96,133.92,7.4647]
[1750661141354,5.83452873,133.95,133.92,7.4647]
[1750661141554,7.4632,133.95,133.92,7.4647]
[1750661141963,690.63581098,133.97,133.92,7.4647]
[1750661142158,5.83437649,133.96,133.92,7.4647]
[1750661142663,7.4629,133.96,133.92,7.4647]
[1750661142863,7.4629,133.96,133.93,7.464]
[1750661143265,7.4629,133.96,133.91,5.83581098]
[1750661143659,692.2623,133.97,133.91,5.83581098]
[1750661143857,684.8,133.97,133.91,5.83581098]
[1750661144162,40.2,133.97,133.93,5.83581098]
[1750661144863,40.2,133.97,133.94,7.4636]
[1750661145263,40.2,133.97,133.93,5.83581098]
[1750661146866,7.4611,133.99,133.95,5.83581098]
[1750661147160,7.4611,133.99,133.96,7.4623]
[1750661147367,50.44872,134.0,133.95,5.83581098]
[1750661147665,50.44872,134.0,133.96,7.4621]
[1750661148066,7.461,133.99,133.96,7.4621]
[1750661148362,40.69022,134.0,133.97,7.462]
[1750661148564,46.52603098,134.0,133.91,47.16837246]
[1750661148866,5.82994741,133.99,133.94,7.4634]
[1750661149070,46.52603098,134.0,133.94,7.4634]
[1750661149265,5.82982576,133.99,133.94,7.4634]
[1750661149572,5.82786399,133.98,133.92,5.83581098]
[1750661149869,5.82786399,133.99,133.92,5.83581098]
[1750661150066,46.52603098,134.0,133.94,5.83581098]
[1750661150267,13.28877151,133.99,133.94,5.83581098]
[1750661150462,7.4612,133.99,133.94,5.83581098]
[1750661151059,46.52603098,134.0,133.96,7.4623]
[1750661151262,48.15082,134.0,133.94,5.83581098]
[1750661151465,40.69022,134.0,133.94,5.83581098]
[1750661152267,46.52603098,134.0,133.94,5.83581098]
[1750661153277,52.35235691,134.0,133.94,5.83581098]
[1750661153476,46.52603098,134.0,133.94,5.83581098]
[1750661153675,7.4617,133.98,133.95,7.4628]
[1750661158883,7.4612,133.99,133.96,7.4625]
[1750661160289,7.4616,133.98,133.95,7.463]
[1750661160887,7.4621,133.97,133.95,7.463]
[1750661161089,7.4621,133.97,133.94,7.4635]
[1750661162383,5.82347624,133.99,133.94,7.4635]
[1750661162585,46.52603098,134.0,133.94,7.4635]
[1750661162781,5.82207991,133.99,133.94,7.4635]
[1750661162979,7.4624,133.97,133.94,7.4635]
[1750661166493,7.4626,133.96,133.93,7.464]
[1750661167489,7.4633,133.95,133.92,5.83581098]
[1750661168087,7.4629,133.96,133.93,7.4642]
[1750661168289,5.82469254,133.97,133.92,5.83581098]
[1750661168491,5.82471165,133.97,133.92,5.83581098]
[1750661168794,5.82471165,133.97,133.93,7.4639]
[1750661169191,7.4627,133.96,133.93,7.4639]
[1750661169394,5.82471165,133.97,133.94,7.4637]
[1750661169585,11.66052263,133.98,133.94,7.4637]
[1750661169786,5.83581098,133.98,133.92,5.83581098]
[1750661169987,11.66052263,133.98,133.93,7.4639]
[1750661170183,5.83581098,133.98,133.92,5.83581098]
[1750661170387,11.66052263,133.98,133.92,5.83581098]
[1750661170686,5.83581098,133.98,133.92,5.83581098]
[1750661170890,7.4624,133.97,133.94,7.4637]
[1750661172796,6.05114029,133.99,133.92,5.83581098]
[1750661173097,5.83049355,133.98,133.94,5.83581098]
[1750661173298,6.05455657,133.99,133.94,5.83581098]
[1750661173496,5.8304422,133.98,133.95,7.4626]
[1750661173698,7.4614,133.99,133.94,5.83581098]
[1750661173886,13.29633102,133.98,133.95,7.4629]
[1750661174090,7.4617,133.98,133.95,7.4629]
[1750661175192,5.84004267,133.97,133.95,7.4629]
[1750661175389,7.4617,133.98,133.95,7.4629]
[1750661175597,5.84005125,133.97,133.95,7.4629]
[1750661175796,7.4617,133.98,133.95,7.4629]
[1750661175994,5.84066528,133.97,133.95,7.4629]
[1750661176293,7.4622,133.97,133.94,7.4635]
[1750661176494,7.4622,133.97,133.93,5.83581098]
[1750661176997,7.4622,133.97,133.94,7.4632]
[1750661177600,13.52700717,133.98,133.95,7.463]
[1750661177795,5.84587629,133.97,133.95,7.463]
[1750661177998,13.52700717,133.98,133.95,7.463]
[1750661178197,5.84588479,133.97,133.95,7.463]
[1750661178396,13.52700717,133.98,133.95,7.463]
[1750661178597,13.30878021,133.97,133.94,7.4636]
[1750661178798,5.84658021,133.96,133.94,7.4636]
[1750661179101,7.4622,133.97,133.94,7.4636]
[1750661179289,5.84624679,133.96,133.94,7.4636]
[1750661179490,7.4622,133.97,133.94,7.4636]
[1750661179691,5.84624679,133.96,133.94,7.4636]
[1750661179903,7.4622,133.97,133.94,7.4636]
[1750661180201,5.84624522,133.96,133.94,11.20666299]
[1750661180501,7.4622,133.97,133.94,11.20666299]
[1750661180700,5.85022801,133.96,133.94,11.20666299]
[1750661181003,7.4622,133.97,133.94,11.20666299]
[1750661181190,5.85102059,133.96,133.94,11.20666299]
[1750661181395,7.4622,133.97,133.94,11.20666299]
[1750661181595,5.85152645,133.96,133.94,11.20666299]
[1750661181897,7.4622,133.97,133.94,11.20666299]
[1750661182098,5.85198065,133.96,133.94,11.20666299]
[1750661182399,7.4622,133.97,133.94,11.20666299]
[1750661182595,5.85406332,133.96,133.94,11.20666299]
[1750661182802,7.4622,133.97,133.94,11.20666299]
[1750661182999,5.8541304,133.96,133.94,11.20666299]
[1750661183197,7.4622,133.97,133.94,11.20666299]
[1750661183398,5.85406237,133.96,133.94,11.20666299]
[1750661183598,5.85406237,133.95,133.94,11.20666299]
[1750661184402,10.25124898,133.97,133.94,11.20666299]
[1750661184603,5.85401677,133.96,133.94,11.20666299]
[1750661184900,5.85401677,133.95,133.94,11.20666299]
[1750661185901,5.85684362,133.95,133.94,11.20666299]
[1750661186306,5.85684362,133.95,133.94,7.4636]
[1750661187202,5.85684362,133.95,133.93,11.20696299]
[1750661187506,7.4627,133.96,133.93,3.74306299]
[1750661187702,5.86367808,133.95,133.93,3.74306299]
[1750661187902,7.4627,133.96,133.93,3.74306299]
[1750661188101,5.86368264,133.95,133.93,3.74306299]
[1750661188305,7.4627,133.96,133.93,3.74306299]
[1750661188504,5.86367451,133.95,133.93,3.74306299]
[1750661188705,7.4627,133.96,133.93,11.20736299]
[1750661188909,5.86456664,133.95,133.93,11.20736299]
[1750661189106,5.86456664,133.94,133.93,11.20736299]
[1750661189706,7.4627,133.96,133.93,11.20736299]
[1750661189909,5.87446934,133.95,133.93,11.20736299]
[1750661190206,5.87443725,133.94,133.93,3.74306299]
[1750661190505,5.87443725,133.94,133.92,11.20766299]
[1750661190707,7.4632,133.95,133.92,11.20766299]
[1750661191004,5.87401518,133.94,133.92,11.20766299]
[1750661191205,7.4632,133.95,133.92,11.20766299]
[1750661191406,5.87401518,133.94,133.92,11.20766299]
[1750661191605,7.4632,133.95,133.93,7.4643]
[1750661191799,5.87406476,133.94,133.93,7.4643]
[1750661192307,7.4629,133.96,133.93,11.20736299]
[1750661192504,5.87499209,133.95,133.94,7.4637]
[1750661192707,5.87499209,133.95,133.94,11.20676299]
[1750661194511,7.4627,133.96,133.94,11.20676299]
[1750661194706,5.87487755,133.95,133.9,9.43667246]
[1750661194904,5.87487755,133.94,133.93,3.74306299]
[1750661195704,5.87487755,133.94,133.93,11.20736299]
[1750661196609,5.87487755,133.94,133.93,7.4643]
[1750661197505,5.87699293,133.94,133.93,7.4643]
[1750661198812,5.87699293,133.94,133.93,11.20736299]
[1750661200317,11.20596299,133.96,133.93,11.20736299]
[1750661200617,19.43365578,133.95,133.92,7.4646]
[1750661200919,5.8776102,133.94,133.92,11.20766299]
[1750661201219,7.4638,133.94,133.92,3.74306299]
[1750661201516,7.4638,133.94,133.91,11.20806299]
[1750661202515,17.30060616,133.95,133.92,11.20786299]
[1750661202715,5.87886628,133.94,133.92,3.74306299]
[1750661202921,6.09417899,133.95,133.92,3.74306299]
[1750661203218,5.87886392,133.94,133.93,7.4643]
[1750661203420,5.87886392,133.94,133.92,3.74306299]
[1750661203612,7.4632,133.95,133.92,11.20756299]
[1750661203809,5.87976522,133.94,133.92,11.20756299]
[1750661204116,11.20586299,133.96,133.93,7.464]
[1750661204319,5.88009787,133.95,133.94,3.74306299]
[1750661204713,51.39408299,134.0,133.94,3.74306299]
[1750661204919,14.77130194,133.99,133.96,3.74306299]
[1750661205114,14.77130194,133.98,133.96,3.74306299]
[1750661205412,5.87983935,133.97,133.96,11.20566299]
[1750661206216,51.39408299,134.0,133.97,7.4619]
[1750661206517,14.77403302,133.99,133.97,7.4619]
[1750661206719,5.88091617,133.98,133.97,7.4619]
[1750661207109,11.97807805,133.98,133.97,7.4619]
[1750661207608,5.88091617,133.98,133.97,7.4619]
[1750661207920,5.88091617,133.98,133.97,11.20496299]
[1750661208820,5.88091617,133.98,133.97,7.4619]
[1750661209215,5.88091617,133.98,133.96,11.20546299]
[1750661209414,7.4609,133.99,133.96,11.20546299]
[1750661209415,5.88091617,133.97,133.96,11.20546299]
[1750661209922,43.93328299,134.0,133.96,3.74306299]
[1750661209923,40.19022,134.0,133.96,3.74306299]
[1750661210109,5.87601428,133.99,133.95,2.3653]
[1750661210418,5.87601428,133.98,133.97,7.462]
[1750661211221,5.87601428,133.98,133.97,11.20506299]
[1750661212121,5.87452899,133.98,133.97,11.20506299]
[1750661212616,47.65092,134.0,133.97,11.20506299]
[1750661212912,5.87748561,133.99,133.97,11.20506299]
[1750661213123,40.19022,134.0,133.98,7.4613]
[1750661213316,40.19022,134.0,133.95,2.3653]
[1750661213317,5.87689253,133.99,133.97,3.74306299]
[1750661213517,5.87651587,133.98,133.96,3.74306299]
[1750661213829,11.20426299,133.99,133.96,11.20536299]
[1750661214017,5.87495998,133.98,133.96,11.20536299]
[1750661214223,5.87495998,133.97,133.95,3.74306299]
[1750661214423,3.74306299,133.98,133.95,3.74306299]
[1750661214625,5.8752949,133.97,133.95,3.74306299]
[1750661214924,11.20456299,133.98,133.95,11.20596299]
[1750661215221,5.87479622,133.97,133.95,11.20596299]
[1750661215421,3.74306299,133.98,133.95,11.20596299]
[1750661215622,5.87424626,133.97,133.95,11.20596299]
[1750661215924,3.74306299,133.98,133.95,11.20596299]
[1750661216222,5.87363453,133.97,133.95,11.20596299]
[1750661216415,11.20466299,133.98,133.95,11.20596299]
[1750661216615,5.87137261,133.97,133.95,11.20596299]
[1750661216816,11.20466299,133.98,133.95,11.20596299]
[1750661217020,5.86967123,133.97,133.95,11.20596299]
[1750661217223,11.20466299,133.98,133.95,11.20596299]
[1750661217419,5.86688877,133.97,133.95,11.20596299]
[1750661217619,7.4624,133.97,133.94,13.49226299]
[1750661217922,3.74306299,133.98,133.94,6.02866299]
[1750661218121,5.8665603,133.97,133.94,6.02866299]
[1750661218312,11.20486299,133.98,133.95,7.4631]
[1750661218516,5.86731922,133.97,133.95,7.4631]
[1750661218713,11.20486299,133.98,133.95,7.4631]
[1750661218914,5.86741745,133.97,133.95,7.4631]
[1750661219113,11.20486299,133.98,133.95,7.4631]
[1750661219313,5.8728754,133.97,133.95,7.4631]
[1750661219524,11.20486299,133.98,133.95,7.4631]
[1750661219821,5.87250455,133.97,133.95,11.20616299]
[1750661220122,11.20486299,133.98,133.95,11.20616299]
[1750661220324,9.6153924,133.97,133.95,7.4631]
[1750661220527,11.20486299,133.98,133.95,7.4631]
[1750661220827,5.87098449,133.97,133.95,7.4631]
[1750661221019,11.20486299,133.98,133.95,11.20616299]
[1750661221212,5.87016397,133.97,133.95,11.20616299]